Cogmind - Beta 16.1 *** ADVENTURER MODE // 2026.03.18 @ 18:22:23 Player: Ms. V3-11A Result: Destroyed by G-50 Soldier with Heavy Laser Performance ------------- Evolutions (5) 2500 Regions Visited (16) 3200 Robots Destroyed (256) 1280 Value Destroyed (10534) 10534 Prototype IDs (32) 640 Alien Tech Used (0) 0 Bonus (3216) 3216 TOTAL SCORE: 21370 Bonus ------- High Alert Combat Kills 142 Follower Combat Kills 2882 Built Enhanced Grunts 300 Met R17 at Cetus 500 Friendly Fire -608 Cogmind --------- Core Integrity 0/1000 Matter 23/300 Energy 99/100 System Corruption 20% Temperature Cool (18) Movement Core (50) Location -5/Factory Parts ------- > --- POWER (2) -------- (None) > --- PROPULSION (3) --- (None) > --- UTILITY (9) ------ (None) > --- WEAPON (3) ------- (None) > --- INVENTORY (5) ---- Matter Compressor (0) Centrium Medium Armor Plating Shock Maul Peak State ------------ > --- POWER ------------ Quantum Reactor Quantum Reactor > --- PROPULSION ------- Flexi-carbon Leg Multireflex Exoskeleton > --- UTILITY ---------- Advanced Cooling System High-capacity Storage Unit Centrium Medium Armor Plating Centrium Medium Armor Plating Experimental Thermal Shield Hardlight Generator Improved Hacking Suite Improved Hacking Suite Makeshift System Shield > --- WEAPON ----------- Improved Lightning Gun Advanced KE Penetrator Advanced KE Penetrator > --- INVENTORY -------- Quantum Reactor Flexi-carbon Leg Flexi-carbon Leg Improved Cooling System Energy Well Matter Compressor Makeshift Terrain Scan Processor Advanced Recoil Stabilizer Layered Medium Armor Plating Centrium Medium Armor Plating Centrium Medium Armor Plating Centrium Medium Armor Plating Centrium Medium Armor Plating Advanced Variable Charge Gun Advanced KE Penetrator Heavy Missile Launcher Shock Maul CR-A16's Pointy Stick [Rating: 119] Favorites ----------- Power Quantum Reactor Engine Improved Ion Engine Power Core Micro Fission Core Reactor Quantum Reactor Propulsion Aluminum Leg Treads Medium Treads Leg Aluminum Leg Utility High-capacity Storage Unit Device Heart of Steel Storage High-capacity Storage Unit Processor Advanced Targeting Computer Hackware Makeshift System Shield Protection Centrium Medium Armor Plating Weapon Improved Assault Rifle Energy Gun Gatling Laser Energy Cannon Cooled Plasma Cannon Ballistic Gun Improved Assault Rifle Launcher Mini Grenade Launcher Impact Weapon Heavy Flail Piercing Weapon CR-A16's Pointy Stick Build | -11 -10 -9 -8 -7 -7 -7 -7 -6 -6 -6 -6 -6 -6 -5 -5 -5 ------- Run | Yrd Mat Mat Mat Fac Low Low Zio Pro Fac Ext Cet Arc Hub Fac Was Fac Slots Evolved 10 | . . 2 2 2 . . . . 2 . . . . 2 . . Power 1 | . . . . 1 . . . . . . . . . . . . Propulsion 1 | . . 1 . . . . . . . . . . . . . . Utility 7 | . . 1 2 1 . . . . 1 . . . . 2 . . Weapon 1 | . . . . . . . . . 1 . . . . . . . Parts Attached 180 | 1 5 22 14 21 7 1 4 . 27 11 8 1 3 47 3 5 Power 32 | 1 . 4 1 5 1 . . . 5 4 2 . . 7 . 2 Engine 17 | 1 . 4 1 1 1 . . . 3 4 . . . 2 . . Core 11 | . . . . 4 . . . . 2 . . . . 3 . 2 Reactor 4 | . . . . . . . . . . . 2 . . 2 . . Propulsion 46 | . 1 6 5 2 3 . . . 10 1 . 1 1 14 1 1 Treads 3 | . . . . . . . . . 3 . . . . . . . Leg 43 | . 1 6 5 2 3 . . . 7 1 . 1 1 14 1 1 Wheel . | . . . . . . . . . . . . . . . . . Hover . | . . . . . . . . . . . . . . . . . Flight . | . . . . . . . . . . . . . . . . . Utility 60 | . 3 9 5 6 2 1 3 . 7 3 3 . 1 16 1 . Device 23 | . . 3 2 2 1 1 2 . 2 2 . . . 7 1 . Storage 3 | . 2 1 . . . . . . . . . . . . . . Processor 8 | . 1 . 2 1 . . . . 1 . 1 . . 2 . . Hackware 7 | . . . 1 . . . . . 2 . . . . 4 . . Protection 19 | . . 5 . 3 1 . 1 . 2 1 2 . 1 3 . . Artifact . | . . . . . . . . . . . . . . . . . Weapon 42 | . 1 3 3 8 1 . 1 . 5 3 3 . 1 10 1 2 Energy Gun 10 | . 1 1 . 1 . . . . 1 1 1 . . 2 . 2 Energy Cannon 2 | . . . . . . . . . 1 . . . . 1 . . Ballistic Gun 26 | . . 2 3 5 1 . 1 . 3 2 2 . 1 6 . . Ballistic Cannon . | . . . . . . . . . . . . . . . . . Launcher 2 | . . . . 1 . . . . . . . . . 1 . . Special Weapon . | . . . . . . . . . . . . . . . . . Impact Weapon 1 | . . . . 1 . . . . . . . . . . . . Slashing Weapon . | . . . . . . . . . . . . . . . . . Piercing Weapon 1 | . . . . . . . . . . . . . . . 1 . Special Melee Weapon . | . . . . . . . . . . . . . . . . . Unidentified Prototypes 12 | . . 1 . . 1 1 1 . 3 1 3 . . 1 . . Corrupted Parts 3 | . . . . . . . . . . 2 . . . 1 . . System Corruption 7 | . . . . . . . . . . 6 . . . 1 . . Parts Lost 79 | . 1 5 2 12 5 7 . . 11 . . . 6 22 5 3 Power 12 | . . . 1 4 1 1 . . 1 . . . 1 3 . . Propulsion 22 | . 1 1 . 4 1 2 . . 4 . . . 1 4 3 1 Utility 27 | . . 3 . 3 2 3 . . 2 . . . 3 9 2 . Weapon 18 | . . 1 1 1 1 1 . . 4 . . . 1 6 . 2 Highest Loss Streak 6 | . 1 2 1 5 5 6 . . 5 . . . 3 6 5 3 To Critical Strikes 2 | . . . . . . . . . . . . . . 2 . . Average Backups 16 | 5 6 15 18 18 19 16 19 19 17 18 19 19 18 18 13 4 Power . | 1 . 1 . . . . . . . . 1 2 2 1 1 . Propulsion 1 | 3 . 1 2 1 . . . . . 4 3 2 1 3 2 . Utility 9 | . 3 7 9 10 12 11 13 14 13 10 10 8 8 8 5 2 Weapon 4 | 1 2 4 4 6 5 4 5 5 3 3 5 6 5 5 3 1 Tool/Special . | . . . . . . . . . . . . . . . . . Unused Backups 56 | . 6 11 4 1 3 . 3 . 4 2 4 . 1 4 10 3 Power 5 | . . 2 . . . . . . . . . . . 2 1 . Propulsion 4 | . . . . . 1 . . . . . . . . 1 2 . Utility 35 | . 5 5 3 . 2 . 2 . 3 2 4 . 1 . 6 2 Weapon 12 | . 1 4 1 1 . . 1 . 1 . . . . 1 1 1 Tool/Special . | . . . . . . . . . . . . . . . . . Average Slot Usage (%) 82 | . 99 98 99 93 97 68 49 52 76 87 86 93 91 86 44 26 Engine 5 | . 14 11 9 3 12 2 . . 5 12 1 . . 1 . . Core 1 | . . . . 8 . . . . 1 . . . . 4 5 8 Reactor 1 | . . . . . . . . . . . 11 13 12 3 . . Leg 18 | . 27 32 27 22 22 14 7 7 10 13 13 13 13 15 6 9 Device 9 | . . 10 9 10 13 9 10 15 11 9 5 . 5 11 5 . Storage 7 | . 14 11 9 7 7 7 7 7 6 6 6 6 6 5 2 . Processor 5 | . 13 . 8 9 15 15 7 . 2 6 6 13 5 . 2 . Hackware 5 | . . . 9 7 . . . . 5 13 13 13 11 13 5 . Protection 6 | . . 10 9 5 7 2 . 6 8 4 7 13 14 9 5 . Energy Gun 2 | . 14 . . 3 6 2 . . 2 . 5 6 . 1 . 6 Ballistic Gun 14 | . 14 20 17 8 6 11 15 15 12 14 13 13 18 12 6 . Peak Build Rating 119 | 6 8 21 39 50 52 52 56 53 74 81 107 107 106 119 107 39 Average Rating 52 | 6 7 17 34 44 50 45 52 52 62 78 101 106 104 93 48 28 On Entrance 52 | 6 6 8 20 39 49 48 49 53 53 70 78 107 105 90 104 9 Avg Prop Armor Cover (%) 12 | . . . . . . . . . 3 . . . . . . 21 Naked Turns 72 | . . . . . . . . . . . . . . . 53 19 Heaviest Build 134 | 13 29 60 60 69 69 63 88 64 104 114 134 111 121 120 105 28 Greatest Support 84 | 20 20 33 54 54 60 60 20 20 84 61 61 61 56 60 52 20 Greatest Overweight (x) 21 | . 1 1 1 1 1 2 4 3 21 1 2 1 2 2 2 9 Average Overweight (x) 1 | . . . 1 . 1 1 2 2 1 1 1 1 1 1 . . Largest Inventory Capacity 20 | 8 15 20 20 20 20 20 20 20 20 20 20 20 20 20 20 5 Average Capacity 18 | 8 10 16 20 20 20 20 20 20 20 20 20 20 20 20 12 5 Most Carried 20 | 5 11 20 20 20 20 18 20 20 20 20 20 20 20 20 20 5 Average Carried 17 | 2 6 15 18 18 19 16 19 20 18 18 19 19 18 18 12 3 Final Capacity 20 | 8 15 20 20 20 20 20 20 20 20 20 20 20 20 20 5 5 Final Carried 20 | 1 9 19 17 20 16 18 20 20 20 19 20 20 20 20 5 3 Class Distribution -------------------- 25% | Mutant 23% | Scavenger-Mutant 13% | Scavenger-Tank 11% | Hacker-Mutant 7% | Derelict-Mutant 7% | Hacker-Tank 6% | Commander-Tank 4% | Hacker-Gunner Dominant Class ---------------- Mutant | -10/Materials Scavenger-Mutant | -9/Materials Hacker-Mutant | -8/Materials Hacker-Mutant | -7/Factory Scavenger-Mutant | -7/Lower Caves Mutant | -7/Lower Caves Mutant | -7/Zion Derelict-Mutant | -6/Proximity Caves Scavenger-Tank | -6/Factory Hacker-Gunner | -6/Extension Commander-Tank | -6/Cetus Commander-Tank | -6/Archives Scavenger-Tank | -6/Hub_04(d) Scavenger-Tank | -5/Factory Mutant | -5/Waste Mutant | -5/Factory Resources | -11 -10 -9 -8 -7 -7 -7 -7 -6 -6 -6 -6 -6 -6 -5 -5 -5 ----------- Run | Yrd Mat Mat Mat Fac Low Low Zio Pro Fac Ext Cet Arc Hub Fac Was Fac Matter Collected 11877 | 200 574 1294 675 654 101 704 355 489 1865 1470 618 70 576 2089 . 143 Remotely . | . . . . . . . . . . . . . . . . . Salvage Created 11859 | . 354 1895 1041 1306 62 455 . . 1283 1392 80 110 929 2781 . 171 Parts 613 | . 14 122 54 60 6 10 . . 53 97 4 6 39 133 . 15 Haulers Intercepted 11 | . . 3 2 1 . . . . 2 . . . 1 2 . . Recyclers Shooed 15 | . . . . 2 . . . . 7 1 . . . 5 . . Parts Field Recycled . | . . . . . . . . . . . . . . . . . Retrieved Matter . | . . . . . . . . . . . . . . . . . Parts Self-Destructed 26 | . . . . . 6 12 1 7 . . . . . . . . Prevented . | . . . . . . . . . . . . . . . . . Parts Restored . | . . . . . . . . . . . . . . . . . Kills | -11 -10 -9 -8 -7 -7 -7 -7 -6 -6 -6 -6 -6 -6 -5 -5 -5 ------- Run | Yrd Mat Mat Mat Fac Low Low Zio Pro Fac Ext Cet Arc Hub Fac Was Fac Combat Hostiles Destroyed 209 | . 6 41 19 25 4 12 . . 13 20 1 . 12 49 . 7 Guns 172 | . 6 41 19 16 4 5 . . 9 13 1 . 12 42 . 4 Cannons 13 | . . . . . . . . . 2 7 . . . 4 . . AOE 19 | . . . . 9 . 6 . . . . . . . 1 . 3 Classes Destroyed 20 | . 3 7 1 4 1 . . . 1 . . . 2 . . 1 Worker 8 | . . 2 1 1 . . . . 3 . . . . 1 . . Builder 8 | . . . . 2 . . . . 1 2 . . . 3 . . Tunneler 1 | . . . . . . . . . . . . . . . . 1 Hauler 11 | . . 3 2 1 . . . . 2 . . . 1 2 . . Recycler 6 | . . 1 . 3 . . . . 2 . . . . . . . Mechanic 4 | . 1 . 1 . . 1 . . 1 . . . . . . . Operator 8 | . . 3 1 1 . . . . . 1 . 1 . 1 . . Watcher 1 | . 1 . . . . . . . . . . . . . . . Swarmer 36 | . . 10 3 . 3 . . . . 2 . . 1 10 . 7 Grunt 80 | . 6 20 11 8 . 4 . . 5 3 . . 5 18 . . Brawler 7 | . . . 1 2 . 2 . . . 1 . . 1 . . . Duelist 7 | . . 1 . 1 . 4 . . . . . . 1 . . . Sentry 32 | . . 10 4 5 . 2 . . . 8 . . . 3 . . Specialist 1 | . . . . . . . . . . . . . 1 . . . Hunter 13 | . . . . 2 . . . . 3 . . . 1 7 . . Programmer 22 | . . . . 4 . . . . 5 2 . . 1 10 . . Heavy 1 | . . . . . . . . . . . . . 1 . . . Behemoth 4 | . . . . . 1 . . . . 2 . . . 1 . . Cetus Guard 1 | . . . . . . . . . . . 1 . . . . . Assembled 3 | . . . . 3 . . . . . . . . . . . . Thug 1 | . . . . . . . . . . . . 1 . . . . Savage 1 | . . . . . . . . . . 1 . . . . . . Butcher 2 | . . . . . . . . . . 1 . . 1 . . . Fireman 1 | . . . . . . . . . 1 . . . . . . . Best Kill Streak 7 | . 2 7 4 6 3 7 . . 4 5 1 1 5 7 . 4 Combat Bots Only 7 | . 2 5 3 5 3 7 . . 4 5 1 . 5 5 . 4 Max Kills in Single Turn 4 | . 1 2 1 2 1 2 . . 1 2 1 1 2 4 . 4 Gunslinging 1 | . . 1 . . . . . . . . . . 1 1 . . Exploded 3 | . . . . 1 . 2 . . . . . . . 1 . 3 Melee . | . . . . . . . . . . . . . . . . . Uniques/NPCs Destroyed . | . . . . . . . . . . . . . . . . . Combat | -11 -10 -9 -8 -7 -7 -7 -7 -6 -6 -6 -6 -6 -6 -5 -5 -5 -------- Run | Yrd Mat Mat Mat Fac Low Low Zio Pro Fac Ext Cet Arc Hub Fac Was Fac Hostile Shots Fired 1878 | . 54 189 105 293 65 70 . 10 243 153 15 18 91 447 12 113 Missed 582 | . 18 59 31 120 17 25 . 3 64 65 2 3 23 113 . 39 Hits 1296 | . 36 130 74 173 48 45 . 7 179 88 13 15 68 334 12 74 Melee 39 | . . . . 3 . 12 . . . . . . 12 . 12 . Projectile 1257 | . 36 130 74 170 48 33 . 7 179 88 13 15 56 334 . 74 Critical Strikes 48 | . . 2 . 7 . 3 . . 10 . 1 1 5 15 3 1 Part Disruptions 3 | . . . . 1 . . . . . . . . 1 1 . . Damage Taken 16339 | . 352 1197 888 1660 712 930 . 135 2367 601 210 281 1307 4377 336 986 Core 2190 | . 49 143 97 311 54 148 . 19 141 87 18 17 106 351 107 542 Absorbed by Shields 483 | . . . . . . . . . . 56 76 . . 240 111 . Redirected to Shielding 102 | . . . . 102 . . . . . . . . . . . . Ignored by Resistances 5178 | . 103 355 256 510 195 221 . 36 679 221 77 76 367 1691 118 273 Regen/Repaired (Parts) 389 | . . 97 116 . . . . . . . . . . 176 . . Core Remaining (%) 67 | 100 80 64 82 . . . . 24 . . . . 56 . . . Volleys Fired 730 | . 29 132 77 81 19 26 . 3 68 48 11 9 48 148 13 18 Largest 3 | . 2 2 2 2 2 2 . 2 3 3 3 2 3 3 3 2 Hottest 168 | . 70 76 48 108 108 108 . 61 143 163 150 70 105 168 101 115 Shots Fired 1551 | . 60 261 154 135 29 49 1 6 124 148 27 17 135 345 28 32 Gun 1434 | . 60 261 154 120 19 43 1 6 114 111 27 17 135 309 28 29 Cannon 77 | . . . . . . . . . 10 37 . . . 30 . . Launcher 40 | . . . . 15 10 6 . . . . . . . 6 . 3 Special . | . . . . . . . . . . . . . . . . . Kinetic 1230 | . 30 233 154 95 10 35 1 6 87 110 26 17 135 263 28 . Thermal 207 | . 30 28 . 25 9 8 . . 37 38 1 . . 31 . . Explosive 40 | . . . . 15 10 6 . . . . . . . 6 . 3 Electromagnetic 74 | . . . . . . . . . . . . . . 45 . 29 Robot Hit Streak 56 | . 16 41 46 56 26 47 . 6 24 28 15 10 13 31 20 6 Robot Miss Streak 7 | . 2 2 2 3 7 3 1 . 3 3 4 2 2 4 1 5 Penetration Max 1 | . . . . . . . . . 1 1 1 1 1 1 . . Secondary Targets 36 | . . 7 3 3 2 3 . . 1 2 1 . 2 12 . . Max Gunslinging Chain 2 | . . 1 1 1 1 1 . . 1 1 1 . 1 2 . . Shots Hit Robots 1172 | . 47 204 130 112 26 43 . 6 105 109 21 13 50 261 27 18 Core Hits 589 | . 18 78 47 98 16 42 . . 66 45 5 4 21 132 2 15 Critical Kills 19 | . . . . . . . . . 1 . 1 2 5 10 . . Critical Parts Destroyed 24 | . . . 1 1 1 . . . 3 1 1 3 6 7 . . Critical Strikes 56 | . 3 . 1 1 1 . . . 4 1 2 7 12 20 4 . Burn 3 | . 3 . . . . . . . . . . . . . . . Meltdown 2 | . . . . . . . . . 1 . . . . 1 . . Destroy 49 | . . . 1 1 1 . . . 3 1 2 7 12 17 4 . Corrupt 2 | . . . . . . . . . . . . . . 2 . . Melee Attacks 4 | . . . . 2 . . . . . . . . . . 2 . Impact 2 | . . . . 2 . . . . . . . . . . . . Slashing . | . . . . . . . . . . . . . . . . . Piercing 2 | . . . . . . . . . . . . . . . 2 . Sneak Attacks . | . . . . . . . . . . . . . . . . . Combat Hostiles . | . . . . . . . . . . . . . . . . . Follow-up Attacks . | . . . . . . . . . . . . . . . . . Damage Inflicted 29137 | . 615 3021 2088 3949 758 1702 . 127 2644 2925 588 501 1753 6862 619 985 Guns 23021 | . 615 3012 2088 2187 385 897 . 127 2189 1882 588 501 1753 5939 587 271 Cannons 1991 | . . . . . . . . . 355 1038 . . . 598 . . Explosions 3979 | . . . . 1762 373 805 . . . . . . . 325 . 714 Melee 32 | . . . . . . . . . . . . . . . 32 . Ramming 114 | . . 9 . . . . . . 100 5 . . . . . . Kinetic 19518 | . 284 2710 2088 1419 173 672 . 127 1547 1882 561 501 1753 5214 587 . Thermal 4537 | . 331 302 . 768 212 225 . . 997 1038 27 . . 637 . . Explosive 3979 | . . . . 1762 373 805 . . . . . . . 325 . 714 Electromagnetic 957 | . . . . . . . . . . . . . . 686 . 271 Impact . | . . . . . . . . . . . . . . . . . Slashing . | . . . . . . . . . . . . . . . . . Piercing 32 | . . . . . . . . . . . . . . . 32 . Highest Corruption 20 | . 3 . . 1 1 4 4 . 6 13 13 13 16 20 20 20 Average Corruption 8 | . 2 . . 1 1 2 4 . 4 8 13 13 13 13 20 20 Corruption Purged . | . . . . . . . . . . . . . . . . . Corruption Blocked . | . . . . . . . . . . . . . . . . . Effects 389 | . 18 . . 1 6 23 12 . 31 80 35 9 38 117 6 13 Message Errors 81 | . 3 . . . 1 3 2 . 10 13 9 2 9 23 2 4 Matter Fused 95 | . 6 . . . . 7 4 . 5 23 10 3 8 24 1 4 Heat Flow Errors 45 | . 1 . . . 2 2 1 . 4 12 3 . 1 17 . 2 Energy Discharges 37 | . 1 . . . 1 5 1 . 2 4 5 . 3 13 1 1 Parts Rejected 8 | . . . . . . . . . 1 . . . 3 4 . . Parts Fused 6 | . . . . . 1 . . . 1 2 1 . . 1 . . Data Loss (minor) 49 | . 4 . . . . . 1 . 6 10 5 2 7 14 . . Data Loss (major) 13 | . . . . . . 3 1 . 1 3 2 1 1 . 1 . Misfires 20 | . 2 . . . 1 3 1 . . 7 . . . 5 1 . Alerts 13 | . 1 . . . . . 1 . 1 3 . . 3 4 . . Misdirections 2 | . . . . . . . . . . . . . 1 . . 1 Weapon Failures 20 | . . . . 1 . . . . . 3 . 1 2 12 . 1 Overload Shots 1 | . . . . . . . . . . 1 . . . . . . Overflow Damage 121 | . . . . 34 . 31 . . . 2 . . . 27 . 27 Projectiles 29 | . . . . . . . . . . 2 . . . 27 . . Explosions 92 | . . . . 34 . 31 . . . . . . . . . 27 Melee . | . . . . . . . . . . . . . . . . . Knockbacks 2 | . . . . . . . . . 2 . . . . . . . Impact 2 | . . . . . . . . . 2 . . . . . . . Kinetic . | . . . . . . . . . . . . . . . . . Secondary . | . . . . . . . . . . . . . . . . . Self-Inflicted Damage 328 | . . . . 145 . 83 . . . . . . . 63 . 37 Shots 13 | . . . . 5 . 5 . . . . . . . 2 . 1 Rammed 15 | . . . . . . . . . 15 . . . . . . . Targets Rammed 19 | . . 3 . . . . . . 15 1 . . . . . . Kicked 4 | . . 3 . . . . . . . 1 . . . . . . Crushed . | . . . . . . . . . . . . . . . . . Highest Temperature 660 | . 243 36 . 3 202 182 218 . 260 237 300 176 253 578 12 660 Average Temperature 104 | . 78 18 . 2 82 37 116 . 88 70 116 80 66 127 6 284 Received Heat Transfer 3953 | . 267 600 495 407 96 165 . 12 427 176 13 54 145 826 . 270 Effects 15 | . . . . . . . . . . . . . . 5 . 10 Shutdowns 6 | . . . . . . . . . . . . . . 2 . 4 Energy Bleed 2 | . . . . . . . . . . . . . . . . 2 Short Circuit 4 | . . . . . . . . . . . . . . . . 4 Damage (minor) 3 | . . . . . . . . . . . . . . 3 . . Siege Activations . | . . . . . . . . . . . . . . . . . Martial Activations . | . . . . . . . . . . . . . . . . . Shielding Activations . | . . . . . . . . . . . . . . . . . Robots Disrupted 1 | . . . . . . . . . . . . . . . . 1 Combat Hostiles 1 | . . . . . . . . . . . . . . . . 1 Robots Corrupted 2 | . . . . . . . . . 1 . . . . 1 . . Combat Hostiles 2 | . . . . . . . . . 1 . . . . 1 . . Parts Fried 4 | . . . . . . . . . 1 . . . . . . 3 Impact Corruptions 1 | . . . . . . . . . 1 . . . . . . . Robots Melted 3 | . . . . . . 1 . . 1 . . . . 1 . . Combat Hostiles 3 | . . . . . . 1 . . 1 . . . . 1 . . Parts Melted 17 | . . 1 . 3 1 1 . . 6 2 . . . 3 . . Heat Transferred 9214 | . 1184 851 . 1650 450 500 . . 1950 1455 37 . . 1137 . . Parts Sabotaged . | . . . . . . . . . . . . . . . . . Parts Stolen . | . . . . . . . . . . . . . . . . . Parts Stripped . | . . . . . . . . . . . . . . . . . Power Chain Reactions . | . . . . . . . . . . . . . . . . . Alert | -11 -10 -9 -8 -7 -7 -7 -7 -6 -6 -6 -6 -6 -6 -5 -5 -5 ------- Run | Yrd Mat Mat Mat Fac Low Low Zio Pro Fac Ext Cet Arc Hub Fac Was Fac Maximum Alert Level 3 | . . . . . . . . . . 1 1 . 3 1 . 1 Low Security (%) 82 | 100 100 100 100 100 . . . . 100 93 91 100 11 24 100 95 Level 1 13 | . . . . . . . . . . 6 8 . 9 75 . 4 Level 2 2 | . . . . . . . . . . . . . 62 . . . Level 3 . | . . . . . . . . . . . . . 16 . . . Level 4 . | . . . . . . . . . . . . . . . . . Level 5 . | . . . . . . . . . . . . . . . . . High Security . | . . . . . . . . . . . . . . . . . Max Security . | . . . . . . . . . . . . . . . . . Peak Influence 873 | . 55 163 114 141 . . . . 138 235 231 157 873 360 81 226 Initial 328 | . . . 21 5 . . . . . 3 60 64 29 328 81 . Average 89 | . 3 43 35 39 . . . . 23 71 68 117 463 237 29 25 Influence Increases 9245 | . 225 1299 642 729 100 255 . 270 739 939 461 160 1438 1682 . 306 Destroy 0b10 Robot/C 5520 | . 120 820 380 440 80 240 . 180 500 600 280 80 680 980 . 140 Destroy 0b10 Robot/NC 305 | . 10 45 25 45 . 5 . . 60 25 10 10 30 35 . 5 Destroy Leader 1128 | . 32 226 104 142 20 10 . 30 126 64 20 . 140 204 . 10 Allied During Kill 714 | . . . . . . . . 45 32 151 136 44 306 . . . Trap Triggered on 0b10 40 | . . . 10 . . . . . . 30 . . . . . . Successful Hack 236 | . 48 23 16 34 . . . . 21 35 . . . 59 . . Select Force Hacks 180 | . . 60 90 . . . . . . . . . . . . 30 Disable Machine 477 | . . 45 . 27 . . . . . 9 . 18 198 144 . 36 Destroy Structure 390 | . . 5 2 41 . . . . . 10 15 8 69 170 . 70 Partial Spotted 15 | . . . . . . . . . . . . . . . . 15 Lose Combat Pursuer 240 | . 15 75 15 . . . . 15 . 15 . . 15 90 . . Influence Decreases 9029 | . 225 1239 686 745 100 255 . 270 729 824 395 247 765 2179 280 90 Entered New Map 972 | . . . 39 11 . . . . . 7 65 127 75 449 199 . Time Decay 6908 | . 218 1199 627 612 50 185 . 230 609 777 290 80 430 1510 31 60 Lost Part 671 | . 7 40 20 84 50 50 . . 60 . . . 60 220 50 30 Lost Ally 440 | . . . . . . 20 . 40 60 40 40 40 200 . . . Purge Threat 38 | . . . . 38 . . . . . . . . . . . . Squads Dispatched 52 | . . 7 5 6 . 1 . . 6 1 . . 10 13 . 3 Investigation 16 | . . 4 3 . . . . . 1 1 . . 1 4 . 2 Extermination 13 | . . . . 3 . . . . 4 . . . 1 5 . . Reinforcement 19 | . . 3 2 3 . . . . 1 . . . 5 4 . 1 Assault 2 | . . . . . . 1 . . . . . . 1 . . . Garrison 2 | . . . . . . . . . . . . . 2 . . . Intercept . | . . . . . . . . . . . . . . . . . Searches Triggered . | . . . . . . . . . . . . . . . . . Construction Impeded 5 | . . . . 1 . . . . . . . . 1 3 . . Haulers Reinforced 5 | . . . . 1 . . . . 1 . . . 2 . . 1 Active Scanning Responses . | . . . . . . . . . . . . . . . . . Cargo Convoy Interrupts . | . . . . . . . . . . . . . . . . . Stealth | -11 -10 -9 -8 -7 -7 -7 -7 -6 -6 -6 -6 -6 -6 -5 -5 -5 --------- Run | Yrd Mat Mat Mat Fac Low Low Zio Pro Fac Ext Cet Arc Hub Fac Was Fac Distress Signals 24 | . 2 6 7 1 . . . . 2 . 2 . . 4 . . Communications Jammed . | . . . . . . . . . . . . . . . . . Distress Signals . | . . . . . . . . . . . . . . . . . Times Spotted 375 | . 17 71 37 33 4 13 . 9 26 30 9 6 36 63 6 15 Peak Tracking Total 11 | . 4 7 6 6 3 7 . 4 4 3 5 3 8 6 6 11 Tactical Retreats 14 | . 1 3 1 . . . . 1 . 1 . . 1 6 . . Traps | -11 -10 -9 -8 -7 -7 -7 -7 -6 -6 -6 -6 -6 -6 -5 -5 -5 ------- Run | Yrd Mat Mat Mat Fac Low Low Zio Pro Fac Ext Cet Arc Hub Fac Was Fac Traps Triggered 29 | . 3 2 1 3 . . . . 1 10 . . 3 6 . . Indirectly . | . . . . . . . . . . . . . . . . . Trap Hack Attempts . | . . . . . . . . . . . . . . . . . Triggered . | . . . . . . . . . . . . . . . . . Disarmed . | . . . . . . . . . . . . . . . . . Reprogrammed 3 | . . . 3 . . . . . . . . . . . . . Reused 4 | . . . 1 . . . . . . 3 . . . . . . Traps Extracted . | . . . . . . . . . . . . . . . . . Installed 11 | . . . . . . . . . . 11 . . . . . . Triggered 4 | . . . 1 . . . . . . 3 . . . . . . Fabricated Traps 11 | . . . . . . . . . . 11 . . . . . . Most Traps Carried 2 | . . . . . . . . . . 2 . . . . . . Machines | -11 -10 -9 -8 -7 -7 -7 -7 -6 -6 -6 -6 -6 -6 -5 -5 -5 ---------- Run | Yrd Mat Mat Mat Fac Low Low Zio Pro Fac Ext Cet Arc Hub Fac Was Fac Machines Disabled 54 | . . 5 . 3 . 1 . . . 1 . 2 22 16 . 4 Max in Single Turn 5 | . . 1 . 1 . 1 . . . 1 . . 3 5 . 4 Garrison Access 5 | . . . 1 1 . . . . 1 . . . 1 1 . . Machines Repaired . | . . . . . . . . . . . . . . . . . Machines Dismantled . | . . . . . . . . . . . . . . . . . Machines Sabotaged . | . . . . . . . . . . . . . . . . . Overloaded Fab Kills . | . . . . . . . . . . . . . . . . . Hacking | -11 -10 -9 -8 -7 -7 -7 -7 -6 -6 -6 -6 -6 -6 -5 -5 -5 --------- Run | Yrd Mat Mat Mat Fac Low Low Zio Pro Fac Ext Cet Arc Hub Fac Was Fac Machines Accessed 75 | . 8 11 13 8 1 1 . . 5 16 . . 2 8 . 2 Terminals 54 | . 8 6 8 7 . . . . 4 16 . . 1 3 . 1 Fabricators 2 | . . . . . . . . . . . . . . 2 . . Repair Stations 4 | . . 1 1 . . . . . . . . . . 2 . . Recycling Units 3 | . . 2 1 . . . . . . . . . . . . . Scanalyzers 5 | . . 2 2 . . . . . . . . . . . . 1 Garrison Access 5 | . . . 1 1 . . . . 1 . . . 1 1 . . Total Hacks 200 | . 28 26 37 23 1 1 . . 19 37 . . 5 21 . 2 Successful 128 | . 14 19 25 17 1 1 . . 10 25 . . 2 12 . 2 Failed 70 | . 14 6 12 6 . . . . 9 11 . . 3 9 . . Catastrophic 2 | . 1 . . 1 . . . . . . . . . . . . Database Lockouts 2 | . . 1 . . . . . . . 1 . . . . . . Manual 94 | . 20 11 18 13 . . . . 15 10 1 . 3 1 . 2 Terminals 160 | . 28 16 27 22 . . . . 18 37 . . 3 8 . 1 Fabricators 5 | . . . . . . . . . . . . . . 5 . . Repair Stations 13 | . . 4 2 . . . . . . . . . . 7 . . Recycling Units 3 | . . 2 1 . . . . . . . . . . . . . Scanalyzers 9 | . . 4 4 . . . . . . . . . . . . 1 Garrison Access 8 | . . . 3 1 . . . . 1 . . . 2 1 . . Terminal Hacks 61 | . 8 6 8 9 1 1 . . 5 21 . . . 2 . . Part Schematic 8 | . . . . 5 . . . . . 2 . . . 1 . . Robot Schematic 3 | . 2 . . . . . . . . 1 . . . . . . Robot Analysis 7 | . 2 1 1 . . . . . . 3 . . . . . . Prototype ID Bank 11 | . 2 2 4 1 . . . . . 2 . . . . . . Open Door 11 | . . . . . 1 1 . . 1 8 . . . . . . Branch Access Points 2 | . . . 1 . . . . . 1 . . . . . . . Machine Index 2 | . . . . . . . . . . 1 . . . 1 . . Terminal Index 4 | . . 1 . 1 . . . . 1 1 . . . . . . Fabricator Index 1 | . . . . . . . . . 1 . . . . . . . Repair Station Index 1 | . . . . . . . . . 1 . . . . . . . Scanalyzer Index 1 | . . . . 1 . . . . . . . . . . . . Unreport Threat 1 | . . . . 1 . . . . . . . . . . . . Locate Traps 4 | . 1 1 1 . . . . . . 1 . . . . . . Reprogram Traps 1 | . . . 1 . . . . . . . . . . . . . Registered Components 1 | . 1 . . . . . . . . . . . . . . . Zone Layout 3 | . . 1 . . . . . . . 2 . . . . . . Fabricator Hacks 4 | . . . . . . . . . . . . . . 4 . . Load Schematic 2 | . . . . . . . . . . . . . . 2 . . Build 2 | . . . . . . . . . . . . . . 2 . . Repair Station Hacks 9 | . . 3 2 . . . . . . . . . . 4 . . Scan Component 5 | . . 2 1 . . . . . . . . . . 2 . . Repair 4 | . . 1 1 . . . . . . . . . . 2 . . Recycling Unit Hacks . | . . . . . . . . . . . . . . . . . Scanalyzer 5 | . . 3 2 . . . . . . . . . . . . . Insert Component 1 | . . . 1 . . . . . . . . . . . . . Analyze 1 | . . . 1 . . . . . . . . . . . . . Retrieve Study 3 | . . 3 . . . . . . . . . . . . . . Garrison Access Hacks 5 | . . . 1 1 . . . . 1 . . . 1 1 . . Seal Access 5 | . . . 1 1 . . . . 1 . . . 1 1 . . Unauthorized Hacks 44 | . 6 7 12 7 . . . . 4 4 . . 1 1 . 2 Terminals 37 | . 6 5 9 7 . . . . 4 4 . . 1 . . 1 Botnet 12 | . 1 . 3 1 . . . . 3 3 . . 1 . . . Skim 24 | . 5 5 6 6 . . . . 1 1 . . . . . . Search 1 | . . . . . . . . . . . . . . . . 1 Fabricators . | . . . . . . . . . . . . . . . . . Repair Stations 1 | . . . . . . . . . . . . . . 1 . . Patch 1 | . . . . . . . . . . . . . . 1 . . Recycling Units 3 | . . 2 1 . . . . . . . . . . . . . Tunnel 3 | . . 2 1 . . . . . . . . . . . . . Scanalyzers 3 | . . . 2 . . . . . . . . . . . . 1 Extract 3 | . . . 2 . . . . . . . . . . . . 1 Garrison Access . | . . . . . . . . . . . . . . . . . Data Cores Recovered 1 | . . . . 1 . . . . . . . . . . . . Used . | . . . . . . . . . . . . . . . . . Hacking Detections 47 | . 8 6 9 5 . . . . 3 8 . . 1 7 . . Full Trace Events 5 | . . . 1 . . . . . 1 . . . . 3 . . Feedback Events 1 | . . . . . . . . . . . . . . 1 . . Corruption 1 | . . . . . . . . . . . . . . 1 . . Feedback Blocked . | . . . . . . . . . . . . . . . . . Robot Schematics Acquired 3 | . 2 . . . . . . . . 1 . . . . . . Robots Built . | . . . . . . . . . . . . . . . . . Authchips . | . . . . . . . . . . . . . . . . . Time . | . . . . . . . . . . . . . . . . . Total Robot Build Rating . | . . . . . . . . . . . . . . . . . Part Schematics Acquired 21 | . . . 11 5 . . . . . 2 . . . 1 . 2 Parts Built 2 | . . . . . . . . . . . . . . 2 . . Authchips . | . . . . . . . . . . . . . . . . . Time 159 | . . . . . . . . . . . . . . 159 . . Total Part Build Rating 12 | . . . . . . . . . . . . . . 12 . . Part Studies Acquired 3 | . . 3 . . . . . . . . . . . . . . Parts Repaired 4 | . . 1 1 . . . . . . . . . . 2 . . Time 207 | . . 44 25 . . . . . . . . . . 138 . . Parts Recycled . | . . . . . . . . . . . . . . . . . Recycled Matter . | . . . . . . . . . . . . . . . . . Retrieved Matter . | . . . . . . . . . . . . . . . . . Retrieved Components . | . . . . . . . . . . . . . . . . . Parts Scanalyzed 1 | . . . 1 . . . . . . . . . . . . . Part Schematics Acquired 1 | . . . 1 . . . . . . . . . . . . . Parts Damaged . | . . . . . . . . . . . . . . . . . Bothacking | -11 -10 -9 -8 -7 -7 -7 -7 -6 -6 -6 -6 -6 -6 -5 -5 -5 ------------ Run | Yrd Mat Mat Mat Fac Low Low Zio Pro Fac Ext Cet Arc Hub Fac Was Fac Used RIF Installer . | . . . . . . . . . . . . . . . . . Robots Hacked . | . . . . . . . . . . . . . . . . . Non-combat . | . . . . . . . . . . . . . . . . . Combat . | . . . . . . . . . . . . . . . . . Robot Hacks Applied . | . . . . . . . . . . . . . . . . . Relay Couplers Released . | . . . . . . . . . . . . . . . . . Fabnet Peak Effective % . | . . . . . . . . . . . . . . . . . Robots Rewired 13 | . . . . . . 2 . . . 11 . . . . . . Allies Hacked . | . . . . . . . . . . . . . . . . . Hacks Repelled . | . . . . . . . . . . . . . . . . . Allies | -11 -10 -9 -8 -7 -7 -7 -7 -6 -6 -6 -6 -6 -6 -5 -5 -5 -------- Run | Yrd Mat Mat Mat Fac Low Low Zio Pro Fac Ext Cet Arc Hub Fac Was Fac Total Allies 36 | . . . . . . 2 7 . 1 21 5 . . . . . Largest Group 24 | . . . . . . 2 7 7 4 19 24 19 15 . . . Highest-Rated Group 1137 | . . . . . . 64 196 196 115 667 1137 981 754 . . . Highest-Rated Ally 159 | . . . . . . 32 31 31 99 159 159 159 96 . . . Total Orders 4 | . . . . . . . . . . . 4 . . . . . STAY 2 | . . . . . . . . . . . 2 . . . . . FOLLOW 2 | . . . . . . . . . . . 2 . . . . . Ally Attacks 435 | . . . . . . 7 . 35 58 84 79 31 141 . . . Total Damage 11499 | . . . . . . 162 . 642 1199 1983 2053 740 4720 . . . Kills 89 | . . . . . . . . 9 15 12 17 5 31 . . . Allies Corrupted 1 | . . . . . . . . . . . . . 1 . . . Allies Melted . | . . . . . . . . . . . . . . . . . Intel | -11 -10 -9 -8 -7 -7 -7 -7 -6 -6 -6 -6 -6 -6 -5 -5 -5 ------- Run | Yrd Mat Mat Mat Fac Low Low Zio Pro Fac Ext Cet Arc Hub Fac Was Fac Active Infowar (turns) 1228 | . . . . 837 . . . . 2 . 128 176 85 . . . Terrain 837 | . . . . 837 . . . . . . . . . . . . Seismic 2 | . . . . . . . . . 2 . . . . . . . Machine Analysis 389 | . . . . . . . . . . . 128 176 85 . . . Robot Analysis Total 7 | . 2 1 1 . . . . . . 3 . . . . . . Derelict Logs Recovered 3 | . . . . . 1 . 2 . . . . . . . . . Drone Launches . | . . . . . . . . . . . . . . . . . Drone Recoveries . | . . . . . . . . . . . . . . . . . Exploration | -11 -10 -9 -8 -7 -7 -7 -7 -6 -6 -6 -6 -6 -6 -5 -5 -5 ------------- Run | Yrd Mat Mat Mat Fac Low Low Zio Pro Fac Ext Cet Arc Hub Fac Was Fac Turns Passed 25991 | 5 2175 3781 1856 1695 652 1459 3192 1301 2277 2210 913 176 869 3020 118 292 Spaces Moved 9722 | 1 825 1820 666 719 290 559 949 300 820 799 236 63 283 1149 118 125 Core 165 | . . . . . . . . . 12 . . . . . 111 42 Treads 230 | . . . . . . . . . 230 . . . . . . . Legs 9327 | 1 825 1820 666 719 290 559 949 300 578 799 236 63 283 1149 7 83 Wheels . | . . . . . . . . . . . . . . . . . Hover . | . . . . . . . . . . . . . . . . . Flight . | . . . . . . . . . . . . . . . . . Fastest Speed 50 | 120 120 120 175 120 188 206 280 280 160 185 185 185 185 185 50 50 Average Speed 205 | 120 124 176 186 189 203 230 323 349 220 185 229 185 244 198 60 149 Slowest Speed 1100 | 120 190 190 190 195 206 280 420 350 1100 185 255 185 255 260 260 500 Overloaded Moves . | . . . . . . . . . . . . . . . . . Propulsion Burnouts . | . . . . . . . . . . . . . . . . . Robots Hopped 1 | . . . . . . . . . . . 1 . . . . . Potential Cave-ins . | . . . . . . . . . . . . . . . . . Cave-ins Triggered 1 | . . . . . . 1 . . . . . . . . . . Exploration Rate (%) 52 | 2 99 99 59 23 44 65 80 50 19 84 57 72 26 31 69 6 Regions Visited 16 Branch Regions 8 Pre-discovered Areas 13 | . 4 3 3 1 1 . 1 . . . . . . . . . Known Exits Taken 8 | . 1 1 1 1 1 . . 1 1 . . . 1 . . . Unknown Exits Taken 6 | 1 . . . . . 1 1 . . 1 1 1 . . . . Scrap Searched 10 | . . . . . 2 1 5 2 . . . . . . . . Spaces Dug 3 | . . . . 2 . . . . . . . . 1 . . . Terrain Destroyed 272 | . . . . 56 18 19 . . 1 10 . 6 32 96 1 33 Melee 2 | . . . . 2 . . . . . . . . . . . . Projectile 74 | . . . . . . . . . 1 10 . 6 32 24 1 . AOE 196 | . . . . 54 18 19 . . . . . . . 72 . 33 Terrain Rammed . | . . . . . . . . . . . . . . . . . Walls Destroyed . | . . . . . . . . . . . . . . . . . Machines Disabled . | . . . . . . . . . . . . . . . . . Actions | -11 -10 -9 -8 -7 -7 -7 -7 -6 -6 -6 -6 -6 -6 -5 -5 -5 --------- Run | Yrd Mat Mat Mat Fac Low Low Zio Pro Fac Ext Cet Arc Hub Fac Was Fac Total 14344 | 6 1913 2134 1147 918 334 690 1081 550 1167 1435 591 105 354 1585 137 197 Wait 3213 | . 1037 104 371 67 3 82 109 246 196 427 308 28 8 187 . 40 Move 9705 | . 824 1819 665 718 289 558 948 299 819 798 233 62 282 1149 117 125 Hop 1 | . . . . . . . . . . . 1 . . . . . Pick Up 140 | . 12 26 6 16 3 5 9 . 17 6 13 2 6 18 . 1 Fast Attach 79 | . 2 6 1 5 1 . 2 1 16 4 4 . 3 28 2 4 Attach 66 | . . 5 4 11 5 3 2 . 11 1 2 . 3 15 1 3 Detach 11 | . . . . . 1 1 1 . . 3 . . . 3 1 1 Swap 84 | 1 3 14 10 10 6 2 . . 4 11 3 1 2 17 . . Drop 163 | 5 6 25 13 8 7 1 10 1 16 25 16 2 2 20 1 5 Fire 730 | . 29 132 77 81 19 26 . 3 68 48 11 9 48 148 13 18 Melee 4 | . . . . 2 . . . . . . . . . . 2 . Ram . | . . . . . . . . . . . . . . . . . Kick 4 | . . 3 . . . . . . . 1 . . . . . . Crush 15 | . . . . . . . . . 15 . . . . . . . Escape Stasis 55 | . . . . . . . . . 5 50 . . . . . . Rewire 63 | . . . . . . 12 . . . 50 . 1 . . . . Trap 11 | . . . . . . . . . . 11 . . . . . . Miscellaneous . | . . . . . . . . . . . . . . . . . Route ------- -11/Scrapyard -10/Materials (discovered 6 exits: *Mat x3 / *Min x2 / [*Sub]) -9/Materials (discovered 4 exits: *Mat x3 / [*Min]) -8/Materials (discovered 3 exits: *Fac x3) -7/Factory (discovered 6 exits: *Fac x3 / *Sto x2 / *Low) -7/Lower Caves -7/Lower Caves (discovered 2 exits: Fac / [*Zio]) -7/Zion -6/Proximity Caves -6/Factory (discovered 6 exits: Fac x2 / Low x2 / *Ext x2) -6/Extension (discovered 2 exits: *Fac / *Cet) -6/Cetus (discovered 2 exits: *Fac / [*Arc]) -6/Archives (discovered 2 exits: *Fac / *Hub) -6/Hub_04(d) (discovered 2 exits: *Fac x2) -5/Factory -5/Waste -5/Factory History --------- Turn | Location | Event 6 | -11/Scrapyard | Discovered new exit (range 0) 6 | -11/Scrapyard | Entered Materials 312 | -10/Materials | Build established: Mutant 316 | -10/Materials | Discovered new exit (range 11) 469 | -10/Materials | Discovered new exit (range 5) 596 | -10/Materials | Discovered new exit (range 12) 609 | -10/Materials | Identified exit to Mines 676 | -10/Materials | Discovered new exit (range 11) 717 | -10/Materials | Discovered exit to Mines (range 8) 797 | -10/Materials | Identified exit to Materials 871 | -10/Materials | Learned Storage stockpile data 935 | -10/Materials | Learned 2 Storage zone layouts 988 | -10/Materials | Learned 4 Recycling zone layouts 1032 | -10/Materials | Learned location of Mines (-10) 1160 | -10/Materials | Learned location of Subcaves (-10) 1221 | -10/Materials | Learned location of Mines (-8) 2181 | -10/Materials | Entered another Materials area 2181 | -9/Materials | Evolved 2 slots: Propulsion x1, Utility x1 2580 | -9/Materials | Discovered new exit (range 16) 2671 | -9/Materials | Build established: Scavenger-Mutant 3468 | -9/Materials | Discovered new exit (range 15) 3758 | -9/Materials | Discovered new exit (range 8) 4293 | -9/Materials | Repaired Broken Imp. Aluminum Leg+ 4870 | -9/Materials | Loaded intel: 16 trap records 4881 | -9/Materials | Central database locked down 4935 | -9/Materials | Identified exit to Materials 4935 | -9/Materials | Learned location of 1 exit from Materials 4991 | -9/Materials | Learned Storage stockpile data 5072 | -9/Materials | Learned Storage emergency access door positions 5128 | -9/Materials | Learned location of 1 exit from Recycling 5222 | -9/Materials | Learned 2 Storage zone layouts 5962 | -9/Materials | Entered another Materials area 5962 | -8/Materials | Evolved 2 slots: Utility x2 5963 | -8/Materials | Identified exit to Factory 6258 | -8/Materials | Met 7R-MNS 6357 | -8/Materials | Discovered exit to Factory (range 16) 6617 | -8/Materials | Build established: Hacker-Mutant 6646 | -8/Materials | Repaired Imp. Assault Rifle 7111 | -8/Materials | Learned Storage stockpile data 7180 | -8/Materials | Learned Storage stockpile data 7184 | -8/Materials | Learned Factory stockpile data 7185 | -8/Materials | Learned Factory terminal intel 7200 | -8/Materials | Learned Factory stockpile data 7610 | -8/Materials | Discovered exit to Factory (range 9) 7818 | -8/Materials | Entered Factory 7818 | -7/Factory | Evolved 2 slots: Power x1, Utility x1 7819 | -7/Factory | Caught up to 7R-MNS 7819 | -7/Factory | Identified exit to Lower Caves 7821 | -7/Factory | Loaded intel: 26 terminal locations 7856 | -7/Factory | Assembled infested ambush trap array 8172 | -7/Factory | Lost 5 parts (1p3n1w) 8650 | -7/Factory | Discovered new exit (range 9) 8813 | -7/Factory | Discovered new exit (range 12) 9198 | -7/Factory | Learned 2 Extension zone layouts 9245 | -7/Factory | Learned location of Lower Caves (-6) 9281 | -7/Factory | Learned 2 Lower Caves zone layouts 9302 | -7/Factory | Build established: Scavenger-Mutant 9309 | -7/Factory | Learned Extension emergency access door positions 9338 | -7/Factory | Learned 2 Upper Caves zone layouts 9357 | -7/Factory | Learned 2 Hub_04(d) zone layouts 9387 | -7/Factory | Identified exit to Factory 9387 | -7/Factory | Identified exit to Storage 9513 | -7/Factory | Entered Lower Caves 9514 | -7/Lower Caves | Identified exit to Lower Caves 9735 | -7/Lower Caves | Encountered a Warlord checkpoint 9983 | -7/Lower Caves | Spotted B-75 Beast 10013 | -7/Lower Caves | Core integrity fell below 50% 10037 | -7/Lower Caves | Destroyed B-75 Beast 10059 | -7/Lower Caves | Lost 5 parts (1p1n2u1w) 10165 | -7/Lower Caves | Entered another Lower Caves area 10167 | -7/Lower Caves | Attracted the attention of an 0b10 checkpoint 10253 | -7/Lower Caves | Encountered a Warlord checkpoint 10692 | -7/Lower Caves | Attracted the attention of an 0b10 outpost 10727 | -7/Lower Caves | Crushed by falling debris 10734 | -7/Lower Caves | Destroyed 7 combat bots 10758 | -7/Lower Caves | Lost 6 parts (1p1n3u1w) 10897 | -7/Lower Caves | Found Prototype Device 10906 | -7/Lower Caves | Identified Heart of Steel 11003 | -7/Lower Caves | Build established: Mutant 11571 | -7/Lower Caves | Discovered new exit (range 13) 11624 | -7/Lower Caves | Entered Zion 11764 | -7/Zion | Learned 4 Factory zone layouts 11834 | -7/Zion | Discovered new exit (range 11) 12095 | -7/Zion | System corruption cleaned by Quarantine Array 12235 | -7/Zion | Found CR-A16's Pointy Stick 12544 | -7/Zion | Learned location of Warlord (-5) 12678 | -7/Zion | Gained Derelict followers 12743 | -7/Zion | Learned location of 1 exit from Factory 13005 | -7/Zion | Gained Derelict followers 13124 | -7/Zion | Found Prototype Device 13124 | -7/Zion | Identified Bomb Factory No. 2 13412 | -7/Zion | Given A8's code to call for help 14710 | -7/Zion | Build established: Derelict-Mutant 14816 | -7/Zion | Entered Proximity Caves 14816 | -6/Proximity Caves | Accompanied by 7 allies 15258 | -6/Proximity Caves | Spotted B-75 Beast 15274 | -6/Proximity Caves | Allies destroyed B-75 Beast 16117 | -6/Proximity Caves | Entered Factory 16117 | -6/Factory | Accompanied by 4 allies 16117 | -6/Factory | Evolved 2 slots: Utility x1, Weapon x1 16118 | -6/Factory | Identified exit to Factory 16661 | -6/Factory | Build established: Mutant 17065 | -6/Factory | Build established: Scavenger-Tank 17312 | -6/Factory | Lost 5 parts (3n2w) 17415 | -6/Factory | Heart of Steel transformed into Warbot 17674 | -6/Factory | Identified exit to Lower Caves 17674 | -6/Factory | Identified exit to Extension 18233 | -6/Factory | Build established: Hacker-Tank 18394 | -6/Factory | Entered Extension 18405 | -6/Extension | Disrupted transfer network 19083 | -6/Extension | Build established: Hacker-Gunner 19211 | -6/Extension | Rescued a captive Derelict 19248 | -6/Extension | Rescued A7 19385 | -6/Extension | Rescued a captive Derelict 19386 | -6/Extension | Rescued a captive Derelict 19792 | -6/Extension | Spotted B-75 Beast 19803 | -6/Extension | Destroyed B-75 Beast 19823 | -6/Extension | Spotted B-75 Beast 19843 | -6/Extension | Destroyed B-75 Beast 19872 | -6/Extension | System corruption reached 10% 20003 | -6/Extension | Rescued a captive Derelict 20004 | -6/Extension | Rescued a captive Derelict 20244 | -6/Extension | Rescued a captive Derelict 20292 | -6/Extension | Rescued a captive Derelict 20293 | -6/Extension | Rescued a captive Derelict 20320 | -6/Extension | Rescued a captive Derelict 20335 | -6/Extension | Rescued a captive Derelict 20440 | -6/Extension | Central database locked down 20466 | -6/Extension | Build established: Commander-Tank 20486 | -6/Extension | Discovered exit to Factory (range 10) 20488 | -6/Extension | Discovered new exit (range 6) 20604 | -6/Extension | Entered Cetus 20604 | -6/Cetus | Accompanied by 19 allies (A7) 20609 | -6/Cetus | Acquired a Cetus Manufacturing Module code from A7 20651 | -6/Cetus | Spotted Cetus Guard 20651 | -6/Cetus | Spotted Cetus Guard 20652 | -6/Cetus | Allies destroyed Cetus Guard 20654 | -6/Cetus | Spotted Cetus Guard 20655 | -6/Cetus | Spotted Cetus Guard 20657 | -6/Cetus | Allies destroyed Cetus Guard 20661 | -6/Cetus | Allies destroyed Cetus Guard 20663 | -6/Cetus | Allies destroyed Cetus Guard 20944 | -6/Cetus | Started Cetus Manufacturing Module 20969 | -6/Cetus | Manufactured an Enhanced Grunt 20994 | -6/Cetus | Manufactured an Enhanced Grunt 21019 | -6/Cetus | Manufactured an Enhanced Grunt 21044 | -6/Cetus | Manufactured an Enhanced Grunt 21069 | -6/Cetus | Manufactured an Enhanced Grunt 21180 | -6/Cetus | Discovered new exit (range 15) 21291 | -6/Cetus | Spotted Cetus Guard 21291 | -6/Cetus | Spotted Cetus Guard 21294 | -6/Cetus | Spotted Cetus Guard 21294 | -6/Cetus | Spotted Cetus Guard 21304 | -6/Cetus | Destroyed Cetus Guard 21309 | -6/Cetus | Allies destroyed Cetus Guard 21324 | -6/Cetus | Allies destroyed Cetus Guard 21330 | -6/Cetus | Allies destroyed Cetus Guard 21339 | -6/Cetus | Discovered exit to Factory (range 16) 21348 | -6/Cetus | Lost 3 allies 21352 | -6/Cetus | Met Revision 17 21354 | -6/Cetus | Security sweep announced 21517 | -6/Cetus | Entered Archives 21517 | -6/Archives | Accompanied by 19 allies (A7) 21563 | -6/Archives | Lost 3 allies 21594 | -6/Archives | Discovered exit to Factory (range 16) 21639 | -6/Archives | Discovered new exit (range 13) 21693 | -6/Archives | Entered Hub_04(d) 21693 | -6/Hub_04(d) | Accompanied by 15 allies 21769 | -6/Hub_04(d) | Discovered exit to Factory (range 10) 21840 | -6/Hub_04(d) | Lost 8 allies 21988 | -6/Hub_04(d) | Spotted B-75 Beast 21996 | -6/Hub_04(d) | Allies destroyed B-75 Beast 22108 | -6/Hub_04(d) | Build established: Scavenger-Tank 22393 | -6/Hub_04(d) | First assault squad dispatched 22411 | -6/Hub_04(d) | Garrison activated, responded to threat 22535 | -6/Hub_04(d) | Found Prototype Device 22562 | -6/Hub_04(d) | Entered Factory 22562 | -5/Factory | Evolved 2 slots: Utility x2 22565 | -5/Factory | Identified Exp. Thermal Shield 22588 | -5/Factory | Lost 3 parts (1p1n1w) 23279 | -5/Factory | Spotted B-75 Beast 23345 | -5/Factory | Destroyed B-75 Beast 23363 | -5/Factory | Lost 3 parts (2u1w) 23551 | -5/Factory | System corruption reached 10% 23794 | -5/Factory | Lost 4 parts (1n3u) 23924 | -5/Factory | Watched by a mysterious "MATRIX" hacker. 24070 | -5/Factory | Lost 6 parts (1p2n2u1w) 24593 | -5/Factory | Fabricated Adv. Hacking Suite? 24654 | -5/Factory | Repaired Corrupted Adv. KE Penetrator? 24809 | -5/Factory | Fabricated Adv. Hacking Suite (x1) 24891 | -5/Factory | Lost 3 parts (2u1w) 24951 | -5/Factory | Repaired Imp. Cooling System 25582 | -5/Factory | Sucked down chute 25582 | -5/Factory | Entered Waste 25596 | -5/Waste | Spotted C-40 Crusher 25618 | -5/Waste | Crushed by Compactor (1 part destroyed, 1 dropped) 25621 | -5/Waste | Crushed by Compactor (1 part destroyed, 1 dropped) 25624 | -5/Waste | Crushed by Compactor (0 parts destroyed, 1 dropped) 25627 | -5/Waste | Crushed by Compactor (1 part destroyed) 25630 | -5/Waste | Crushed by Compactor (1 part destroyed) 25634 | -5/Waste | Spotted C-40 Crusher 25636 | -5/Waste | Crushed by Compactor (0 parts destroyed, 1 dropped) 25642 | -5/Waste | Crushed by Compactor (1 part destroyed, 1 dropped) 25644 | -5/Waste | Released all parts (7) 25649 | -5/Waste | Spotted C-40 Crusher 25655 | -5/Waste | Spotted C-40 Crusher 25656 | -5/Waste | Spotted C-40 Crusher 25663 | -5/Waste | Spotted C-40 Crusher 25673 | -5/Waste | Lost 5 parts (3n2u) 25687 | -5/Waste | Discovered new exit (range 13) 25700 | -5/Waste | Entered Factory 25890 | -5/Factory | Core integrity fell below 50% 25943 | -5/Factory | Build established: Mutant 25984 | -5/Factory | Core integrity fell below 20% 25992 | -5/Factory | Destroyed by G-50 Soldier with Heavy Laser Last Messages --------------- 25966_ Broken Arc Projector destroyed. 25966_ Dropped Broken Hpw. Shock Rifle. 25968_ System corrupted: Matter fused (-5). 25969_ Nuclear Reactor explodes. 25969_ Acquired 30 matter. 25971_ The unstable cave ceiling collapses. 25977_ Connecting with Scanalyzer... >>Force(Extract) EXTRACTED[Gyrokinetic Inverter] EXTRACTED[Hvy. Plasma Cannon] 25977_ ALERT: Suspicious activity at Scanalyzer F002. Dispatching Investigation squad. 25980_ S-27 Virus destroyed. 25980_ T-07 Excavator destroyed. 25982_ Critical hit (Burn: +37). 25983_ ALERT: Hostile activity reported, dispatching reinforcements to area. 25986_ System corrupted: Heat flow error (+105). 25986_ Hvy. Missile Launcher destroyed. 25987_ Acquired 18 matter. Map ----- +----------------------------------------------------+ | | | | | | | | | | | | | ?????????????????????????????????????????????????? | | ?????????????????????????????????????????????????? | | ?????????????????????????????????????????????????? | | ?????????????????????????????????????????????????? | | ?????????????????????????????????????????????????? | | ?????????????????????????????????????????????????? | | ?????????????????????????????????????????????????? | | ?????????????????????????????????????????????????? | | ?????????????????????????????????????????????????? | | ?????????????????????????????????????????????##### | | ?????????????????????????????????????????????# | | ?????????????????????????????????????????????# | | ?????????????????????????????????????????????# | | ?????????????????????????????????????????????# | | ?????????????????????????????????????????????# | | ??????????????????######+#########???????????# | | ?????????????????? #???????????# | | ?????????????????? #???????????# | | ?????????????????""" """" ==!#???????????# | | ????????????????"""" """"@ =!!#???????????# | | ?????????????# """" """" =!!#???????????# | | ?????????????# #?####?###### | | ?????????????# ###T ### # ## ## | | ?????????? ^ | | ?????????? ^* | | ??????????? %[ | | ??????????? g = * | | ???????????? !R % g [ * | | ????????????""" ! ##### # | | ??????????????" s[==% "" | | ??????????????" g [% [ "" | | ??????????????" ]] * g "" | | ?????????????? ]] | | ?????????????? """ | | ??????????????? """ | | ???????????????##+########## # """ # | | ???????????????????????????# # | | ???????????????????????????# # """ # "T | | ???????????????????????????# # """ # "" ! | | ???????????????????????????# # """ # "" [ | | ???????????????????????????# # # ! | | ???????????????????????????# ################# | | ???????????????????????????# #???????????????? | | ???????????????????????????# ????????????????? | +----------------------------------------------------+ Best States ------------- Heat Dissipation 86 Energy Generation 45 Energy Capacity 600 Matter Stores 300 Matter Capacity 300 Sight Range 16 Terrain Scan Range 16 Terrain Scan Density 85 Armor Coverage 825 Resistance: KI 50 Resistance: TH 50 Resistance: EX 20 Resistance: EM 20 Resistance: I 20 Resistance: S 20 Resistance: P 20 Core Shielding 20 Propulsion Shielding 66 Weapon Cycling 15 Evasion (%) 55 Targeting Accuracy 8 Target Analysis 6 Recoil Reduction 6 Salvage Targeting 4 Offensive Hacking 38 Defensive Hacking 11 Item Schematics ----------------- Cld. Ion Engine | -8/Materials | Scanalyzed Med. Storage Unit | -8/Materials | Extracted Adv. EMP Blaster | -8/Materials | Extracted Melee Analysis Suite | -8/Materials | Extracted Hpw. Shotgun | -8/Materials | Extracted Com. Battery | -8/Materials | Extracted Med. Matter Pod | -8/Materials | Extracted Imp. Weapon Shielding | -8/Materials | Extracted Arm. Wheel | -8/Materials | Extracted Hvy. EM Pulse Gun | -8/Materials | Extracted Hvy. Assault Rifle | -8/Materials | Extracted Imp. Spread Laser | -7/Factory | Hacked Hvy. Missile Launcher | -7/Factory | Hacked Adv. Assault Cannon | -7/Factory | Hacked Imp. Titanium Leg | -7/Factory | Hacked Deuterium Engine | -7/Factory | Hacked Enh. Gauss Cannon | -6/Extension | Hacked Imp. Particle Charger | -6/Extension | Hacked Adv. Hacking Suite | -5/Factory | Hacked Gyrokinetic Inverter | -5/Factory | Extracted Hvy. Plasma Cannon | -5/Factory | Extracted Robot Schematics ------------------ G-34 Mercenary | -10/Materials | Hacked M-13 Machinist | -10/Materials | Hacked G-47 Trooper | -6/Extension | Hacked Fabricated ------------ Adv. Hacking Suite | x1 | -5/Factory Adv. Hacking Suite | x1 | -5/Factory Repaired ---------- Imp. Aluminum Leg | 3% | -9/Materials | Broken Imp. Assault Rifle | 17% | -8/Materials Adv. KE Penetrator | 69% | -5/Factory | Corrupted Imp. Cooling System | 57% | -5/Factory Studied --------- Imp. Aluminum Leg | -9/Materials | Hacked Imp. Ion Engine | -9/Materials | Hacked Aluminum Leg | -9/Materials | Hacked Alien Tech Used ----------------- None Achievements -------------- Brother of Steel Challenges ------------ None Game ------ Seed ThermalDerelictDoomcannon Manual? 0 Play Time 02:36:25 Cumulative 514.5 hours Start 2026.03.18 @ 04:32:52 End 2026.03.18 @ 18:22:23 Sessions 5 Manual Loads 0 Difficulty Adventurer Special Mode None Game No. 365 Rogue 63 Adventurer 276 Explorer 26 Win Type - Total 2 Types 2/0/0/0/0/0/0/0/0/0 Lore% 84 Gallery% 72 Achievement% 54 Wizard Run 0 Options --------- Layout 2 ASCII 0 Keyboard 0 Movement Mouse Keybinds 0 Fullscreen 0 Font 16/Cog Map View 64x51 Zoom Use 0% Tactical HUD 1 Map Filters NONE Filters BRIGHTNESS(115)|SATURATION(100)|LOW_CONTRAST(0,16,30) Steam 1 RUN: 20563581-3523-4cf8-a960-d5c672eb80d1